{"text_format":"3","workbook":"xlsx","n_sheets":4,"sheets":["Hitos","Plan de desarrollo","Acerca de","Datos del gráfico"],"not_rendered":{"charts":1,"defined_names":2},"read":"whole","date_system":"1900"}

{"sheet":"Hitos","index":0,"n_rows":27,"n_cols":5,"rows_kept":27}
["Para crear un plan de desarrollo, especifica hitos y actividades importantes en esta hoja cálculo.\nEl título de esta hoja de cálculo está en la celda C1. \nLa información sobre cómo usar esta hoja de cálculo, incluidas las instrucciones para los lectores de pantalla, está en la hoja de cálculo Acerca de.\nContinúa desplazándote hacia abajo en la columna A para obtener más instrucciones.",null,"Hitos"]
["Los encabezados de tabla están en las celdas C2 a E2. Usa las opciones de ordenar y filtrar para ordenar o buscar entradas específicas.\nIntroduce los Hitos con fechas y establece la posición para marcar el hito, en la tabla a partir de la celda C3.\nSe ocultó la columna B. El gráfico se generó a partir de datos con una barra de desplazamiento para ver partes de la escala de tiempo. La columna B te ayuda a determinar qué Hitos marcar cuando se incrementa la barra de desplazamiento. \nAdvertencia: Eliminar o modificar el contenido de la columna B puede afectar a la integridad de los gráficos integrados en este libro.","N.º","Puesto","Fecha","Hito"]
["Especifica la puesto para marcar la fecha y el hito en la celda C1. Escribe un número positivo entre 1 y 3 para marcar el hito por encima de la escala de tiempo. Escribe un número negativo entre -1 y -3 para marcar el hito por debajo de la escala de tiempo.\nEspecifica la fecha y el Hito o actividad en la columna D y E en la tabla.\nRepite este patrón para cada nueva fila en la tabla a la derecha.\nEn la fila 3 a 26 se proporcionan datos de ejemplo. Modifica o elimina contenido de ejemplo para crear tu propio plan de desarrollo.\nPasa a la celda A27 para conocer la siguiente instrucción.",{"$f":"ROW($A1)","v":1},1,{"$f":"TODAY()","v":"2018-06-29"},"Inicio"]
[null,{"$f":"ROW($A2)","v":2},-2,{"$f":"D3+10","v":"2018-07-09"},"Análisis de problemas\nactividad 1"]
[null,3,1,{"$f":"D4+20","v":"2018-07-29"},"Desarrollar el caso de empresa\nactividad 1\nactividad 2"]
[null,4,-1,{"$f":"D5+30","v":"2018-08-28"},"Revisar presentación"]
[null,5,{"v":-0.5,"d":"-1"},{"$f":"D6+40","v":"2018-10-07"},"Lanzamiento de ejecución\nactividad 1\nactividad 2"]
[null,6,2,{"$f":"D7+50","v":"2018-11-26"},"Alineación de ejecución\nactividad 1\nactividad 2\nactividad 3"]
[null,7,{"v":0.5,"d":"1"},{"$f":"D8+60","v":"2019-01-25"},"Participación de partes interesadas"]
[null,8,-1,{"$f":"D9+70","v":"2019-04-05"},"Selección de recursos"]
[null,9,{"v":0.5,"d":"1"},{"$f":"D10+80","v":"2019-06-24"},"Creación de equipo\nactividad 1 "]
[null,10,-2,{"$f":"D11+90","v":"2019-09-22"},"Lanzamiento de equipo\nactividad 1 \nactividad 2\nactividad 3\nactividad 4"]
[null,11,3,{"$f":"D12+100","v":"2019-12-31"},"Iniciar la recopilación de datos"]
[null,12,-1,{"$f":"D13+90","v":"2020-03-30"},"Análisis de datos"]
[null,13,1,{"$f":"D14+80","v":"2020-06-18"},"Diseño"]
[null,14,1,{"$f":"D15+70","v":"2020-08-27"},"Prueba de concepto"]
[null,15,-3,{"$f":"D16+60","v":"2020-10-26"},"Evaluación y análisis"]
[null,16,-2,{"$f":"D17+50","v":"2020-12-15"},"Rediseñar"]
[null,17,2,{"$f":"D18+40","v":"2021-01-24"},"Rediseñar"]
[null,18,-1,{"$f":"D19+30","v":"2021-02-23"},"Evaluación y análisis"]
[null,19,1,{"$f":"D20+20","v":"2021-03-15"},"Rediseñar"]
[null,20,-3,{"$f":"D21+10","v":"2021-03-25"},"Rediseñar"]
[null,21,2,{"$f":"D22+20","v":"2021-04-14"},"Prueba final"]
[null,22,1,{"$f":"D23+30","v":"2021-05-14"},"Prueba beta"]
[null,23,-3,{"$f":"D24+40","v":"2021-06-23"},"Revisar"]
[null,24,-2,{"$f":"D25+50","v":"2021-08-12"},"Lanzamiento de marketing"]
["Para agregar más filas a la tabla de Hitos del plan de desarrollo, basta con insertar una nueva fila encima de esta.\nNo hay ninguna instrucción más en esta hoja de cálculo.",null,"Para agregar más hitos, inserta filas nuevas encima de esta línea."]

{"sheet":"Plan de desarrollo","index":1,"n_rows":3,"n_cols":4,"rows_kept":3}
["El gráfico que muestra hitos de la hoja de cálculo de Hitos está en esta hoja de cálculo. \nLos años se indican en las celdas B2, C2 y D2 y tienen el estilo Título 3 aplicado.\nSe marcan 10 hitos de una vez. \nUse la barra de desplazamiento en las celdas B4 a D4 para desplazarse por el plan de desarrollo.\nLos años de la escala de tiempo están en las celdas B3 a D3.\nNo hay ninguna instrucción más en esta hoja de cálculo."]
[]
[null,{"$f":"'Datos del gráfico'!B20","v":2018},{"$f":"'Datos del gráfico'!B21","v":""},{"$f":"'Datos del gráfico'!B22","v":2019}]

{"sheet":"Acerca de","index":2,"n_rows":5,"n_cols":1,"rows_kept":5}
["Acerca de este libro"]
["Guía para los lectores de pantalla"]
["Hay 4 hojas de cálculo en este libro. \n\nHitos\nPlan de desarrollo\nAcerca de\nDatos de gráfico (ocultos)\n\nLas instrucciones para cada hoja de cálculo están en la columna A a partir de la celda A1 de cada hoja de cálculo. Se escriben con texto oculto. Cada paso te guiará por la información de esa fila. Cada paso subsiguiente continúa en la celda A2, A3 y así sucesivamente, a menos que se indique lo contrario de forma explícita. Por ejemplo, el texto de instrucciones podría decir \"pasar a la celda A6\" para el siguiente paso. \n\nEl texto oculto no se imprimirá.\n\nPara quitar estas instrucciones de cualquier hoja de cálculo, basta con eliminar la columna A.\n"]
["Este plan de desarrollo usa posiciones para registrar hitos y actividades. Las posiciones pueden usarse para agregar peso a un hito o una actividad. Simplemente, ajusta los valores según tus preferencias de peso. Por ejemplo, el hito/actividad 3 puede tener más peso que el hito/actividad 2. Para indicar esto en el gráfico, simplemente haz que el valor de posición para el hito/actividad 3 sea mayor que para el hito/actividad 2.  \n"]
["Esta es la última instrucción en esta hoja de cálculo."]

{"sheet":"Datos del gráfico","index":3,"n_rows":26,"n_cols":4,"rows_kept":26,"hidden":true}
["Los datos para crear los gráficos dinámicos están en esta hoja de cálculo. No elimines esta hoja de cálculo.\nEliminar esta hoja de cálculo podría comprometer la capacidad dinámica del libro.","No elimines esta hoja de cálculo."]
["El título de la tabla está en la celda B2.","Contenido de gráfico dinámico"]
["Los encabezados de tabla están en las celdas B3 a D3. \nEsta tabla se actualiza automáticamente según el contenido de la hoja de cálculo de Hitos.\nAdvertencia: Modificar o eliminar el contenido de esta tabla podría comprometer la capacidad de actualización dinámica del gráfico del plan de desarrollo en la hoja de cálculo del Plan de desarrollo.\nPasa a la celda A15 para conocer la siguiente instrucción.","Fecha","Eventos","Puesto"]
[null,{"$f":"IFERROR(IF(LEN(Hitos!D3)=0,\"\",INDEX(HitosPlanDeDesarrollo[],Hitos!$B3+$B$17,3)),\"\")","v":"2018-06-29"},{"$f":"IFERROR(IF(LEN(Hitos!E3)=0,\"\",INDEX(HitosPlanDeDesarrollo[],Hitos!$B3+$B$17,4)),\"\")","v":"Inicio"},{"$f":"IFERROR(INDEX(HitosPlanDeDesarrollo[],Hitos!$B3+$B$17,2),\"\")","v":1}]
[null,{"$f":"IFERROR(IF(LEN(Hitos!D4)=0,\"\",INDEX(HitosPlanDeDesarrollo[],Hitos!$B4+$B$17,3)),\"\")","v":"2018-07-09"},{"$f":"IFERROR(IF(LEN(Hitos!E4)=0,\"\",INDEX(HitosPlanDeDesarrollo[],Hitos!$B4+$B$17,4)),\"\")","v":"Análisis de problemas\nactividad 1"},{"$f":"IFERROR(INDEX(HitosPlanDeDesarrollo[],Hitos!$B4+$B$17,2),\"\")","v":-2}]
[null,{"$f":"IFERROR(IF(LEN(Hitos!D5)=0,\"\",INDEX(HitosPlanDeDesarrollo[],Hitos!$B5+$B$17,3)),\"\")","v":"2018-07-29"},{"$f":"IFERROR(IF(LEN(Hitos!E5)=0,\"\",INDEX(HitosPlanDeDesarrollo[],Hitos!$B5+$B$17,4)),\"\")","v":"Desarrollar el caso de empresa\nactividad 1\nactividad 2"},{"$f":"IFERROR(INDEX(HitosPlanDeDesarrollo[],Hitos!$B5+$B$17,2),\"\")","v":1}]
[null,{"$f":"IFERROR(IF(LEN(Hitos!D6)=0,\"\",INDEX(HitosPlanDeDesarrollo[],Hitos!$B6+$B$17,3)),\"\")","v":"2018-08-28"},{"$f":"IFERROR(IF(LEN(Hitos!E6)=0,\"\",INDEX(HitosPlanDeDesarrollo[],Hitos!$B6+$B$17,4)),\"\")","v":"Revisar presentación"},{"$f":"IFERROR(INDEX(HitosPlanDeDesarrollo[],Hitos!$B6+$B$17,2),\"\")","v":-1}]
[null,{"$f":"IFERROR(IF(LEN(Hitos!D7)=0,\"\",INDEX(HitosPlanDeDesarrollo[],Hitos!$B7+$B$17,3)),\"\")","v":"2018-10-07"},{"$f":"IFERROR(IF(LEN(Hitos!E7)=0,\"\",INDEX(HitosPlanDeDesarrollo[],Hitos!$B7+$B$17,4)),\"\")","v":"Lanzamiento de ejecución\nactividad 1\nactividad 2"},{"$f":"IFERROR(INDEX(HitosPlanDeDesarrollo[],Hitos!$B7+$B$17,2),\"\")","v":-0.5}]
[null,{"$f":"IFERROR(IF(LEN(Hitos!D8)=0,\"\",INDEX(HitosPlanDeDesarrollo[],Hitos!$B8+$B$17,3)),\"\")","v":"2018-11-26"},{"$f":"IFERROR(IF(LEN(Hitos!E8)=0,\"\",INDEX(HitosPlanDeDesarrollo[],Hitos!$B8+$B$17,4)),\"\")","v":"Alineación de ejecución\nactividad 1\nactividad 2\nactividad 3"},{"$f":"IFERROR(INDEX(HitosPlanDeDesarrollo[],Hitos!$B8+$B$17,2),\"\")","v":2}]
[null,{"$f":"IFERROR(IF(LEN(Hitos!D9)=0,\"\",INDEX(HitosPlanDeDesarrollo[],Hitos!$B9+$B$17,3)),\"\")","v":"2019-01-25"},{"$f":"IFERROR(IF(LEN(Hitos!E9)=0,\"\",INDEX(HitosPlanDeDesarrollo[],Hitos!$B9+$B$17,4)),\"\")","v":"Participación de partes interesadas"},{"$f":"IFERROR(INDEX(HitosPlanDeDesarrollo[],Hitos!$B9+$B$17,2),\"\")","v":0.5}]
[null,{"$f":"IFERROR(IF(LEN(Hitos!D10)=0,\"\",INDEX(HitosPlanDeDesarrollo[],Hitos!$B10+$B$17,3)),\"\")","v":"2019-04-05"},{"$f":"IFERROR(IF(LEN(Hitos!E10)=0,\"\",INDEX(HitosPlanDeDesarrollo[],Hitos!$B10+$B$17,4)),\"\")","v":"Selección de recursos"},{"$f":"IFERROR(INDEX(HitosPlanDeDesarrollo[],Hitos!$B10+$B$17,2),\"\")","v":-1}]
[null,{"$f":"IFERROR(IF(LEN(Hitos!D11)=0,\"\",INDEX(HitosPlanDeDesarrollo[],Hitos!$B11+$B$17,3)),\"\")","v":"2019-06-24"},{"$f":"IFERROR(IF(LEN(Hitos!E11)=0,\"\",INDEX(HitosPlanDeDesarrollo[],Hitos!$B11+$B$17,4)),\"\")","v":"Creación de equipo\nactividad 1 "},{"$f":"IFERROR(INDEX(HitosPlanDeDesarrollo[],Hitos!$B11+$B$17,2),\"\")","v":0.5}]
[null,{"$f":"IFERROR(IF(LEN(Hitos!D12)=0,\"\",INDEX(HitosPlanDeDesarrollo[],Hitos!$B12+$B$17,3)),\"\")","v":"2019-09-22"},{"$f":"IFERROR(IF(LEN(Hitos!E12)=0,\"\",INDEX(HitosPlanDeDesarrollo[],Hitos!$B12+$B$17,4)),\"\")","v":"Lanzamiento de equipo\nactividad 1 \nactividad 2\nactividad 3\nactividad 4"},{"$f":"IFERROR(INDEX(HitosPlanDeDesarrollo[],Hitos!$B12+$B$17,2),\"\")","v":-2}]
[]
["La capacidad para desplazarse por el plan de desarrollo se realiza con la ayuda de un valor incremental. El título de esta capacidad está en la celda B15.\nEn las celdas B16 y B17 hay una tabla con un encabezado y un valor único.\nPasa a la celda A19 para conocer la siguiente instrucción.","Posibilidad de desplazamiento"]
[null,"Incremento de filas"]
[null,0]
[]
["El gráfico del plan de desarrollo traza los años de la escala de tiempo. Para ello, deben capturarse los años de la lista de Hitos. \nEl título de esta sección es \"Año\" en la celda B19. \nLos valores de año se generan automáticamente en las celdas C20 a C22.\nAdvertencia: Eliminar o modificar estos años podría cambiar la precisión de muestra del gráfico del plan de desarrollo.\nPasa a la celda A24 para conocer la siguiente instrucción.","Año"]
[null,{"$f":"IFERROR(YEAR(B4),\"\")","v":2018},"<: año para la posición inicial del plan de desarrollo"]
[null,{"$f":"IFERROR(IF(YEAR($B$9)=$B$20,\"\",YEAR($B$9)),\"\")","v":""},"<: año del período intermedio del plan de desarrollo. Ten en cuenta que puede estar en blanco si es el mismo año de la posición inicial del plan de desarrollo"]
[null,{"$f":"IFERROR(IF(YEAR($B$13)=$B$20,\"\",YEAR($B$13)),\"\")","v":2019},"<: año del período final del plan de desarrollo. Ten en cuenta que puede estar en blanco si es el mismo año de la posición inicial del plan de desarrollo"]
[]
["Los marcadores de anillo en el gráfico del mapa de ruta contienen fechas del contenido del gráfico dinámico en esta hoja de cálculo. Las fechas son la primera fecha en la celda C24, la fecha intermedia en la celda C25 y última fecha en la celda C26.\nNo hay ninguna instrucción más en esta hoja de cálculo.","Primera fecha",{"$f":"B4","v":"2018-06-29"}]
[null,"Fecha intermedia",{"$f":"B9","v":"2018-11-26"}]
[null,"Última fecha",{"$f":"B13","v":"2019-09-22"}]